Cogmind - Beta 16 @@@ ROGUE MODE // 2025.10.28 @ 13:28:19 Player: Shrewd Result: Destroyed by S-10 Pest with Light Assault Rifle Performance ------------- Evolutions (0) 0 Regions Visited (1) 200 Robots Destroyed (7) 35 Value Destroyed (163) 163 Prototype IDs (0) 0 Alien Tech Used (0) 0 Bonus (0) 0 TOTAL SCORE: 398 Bonus ------- None Cogmind --------- Core Integrity 0/250 Matter 285/300 Energy 100/100 System Corruption 0% Temperature Cool (0) Movement Rolling (80) Location -10/Materials Parts ------- > --- POWER (1) -------- (None) > --- PROPULSION (2) --- Wheel > --- UTILITY (2) ------ Small Storage Unit > --- WEAPON (2) ------- Mining Claw > --- INVENTORY (8) ---- High-capacity Matter Pod (76) EM Pulse Gun Light Assault Rifle Hammer Peak State ------------ > --- POWER ------------ Light Ion Engine > --- PROPULSION ------- Aluminum Leg Aluminum Leg > --- UTILITY ---------- Small Storage Unit Seismic Detector > --- WEAPON ----------- Assault Rifle Light Assault Rifle > --- INVENTORY -------- Light Ion Engine Light Treads Light Treads Wheel Wheel High-capacity Matter Pod EM Pulse Gun Hammer [Rating: 7] Favorites ----------- Power Light Ion Engine Engine Light Ion Engine Propulsion Aluminum Leg Leg Aluminum Leg Wheel Wheel Utility Small Storage Unit Device Seismic Detector Storage Small Storage Unit Weapon Light Assault Rifle Energy Gun EM Pulse Gun Ballistic Gun Light Assault Rifle Impact Weapon Hammer Slashing Weapon Mining Claw Build | -11 -10 ------- Run | Yrd Mat Slots Evolved . | . . Power . | . . Propulsion . | . . Utility . | . . Weapon . | . . Parts Attached 10 | . 10 Power 1 | . 1 Engine 1 | . 1 Core . | . . Reactor . | . . Propulsion 2 | . 2 Treads . | . . Leg 1 | . 1 Wheel 1 | . 1 Hover . | . . Flight . | . . Utility 3 | . 3 Device 2 | . 2 Storage 1 | . 1 Processor . | . . Hackware . | . . Protection . | . . Artifact . | . . Weapon 4 | . 4 Energy Gun . | . . Energy Cannon . | . . Ballistic Gun 2 | . 2 Ballistic Cannon . | . . Launcher . | . . Special Weapon . | . . Impact Weapon 1 | . 1 Slashing Weapon 1 | . 1 Piercing Weapon . | . . Special Melee Weapon . | . . Unidentified Prototypes . | . . Parts Lost 7 | . 7 Power 2 | . 2 Propulsion 2 | . 2 Utility 2 | . 2 Weapon 1 | . 1 Highest Loss Streak 6 | . 6 To Critical Strikes . | . . Average Backups 6 | 6 6 Power . | 1 . Propulsion 3 | 4 3 Utility . | . . Weapon 2 | 1 2 Tool/Special . | . . Unused Backups 9 | . 9 Power 1 | . 1 Propulsion 5 | . 5 Utility 1 | . 1 Weapon 2 | . 2 Tool/Special . | . . Average Slot Usage (%) 93 | . 93 Engine 13 | . 13 Leg 26 | . 26 Device 6 | . 6 Storage 17 | . 17 Ballistic Gun 16 | . 16 Impact Weapon 10 | . 10 Peak Build Rating 7 | 6 7 Average Rating 6 | 6 6 On Entrance 6 | 6 6 Avg Prop Armor Cover (%) . | . . Naked Turns . | . . Heaviest Build 15 | 11 15 Greatest Support 20 | 20 20 Greatest Overweight (x) . | . . Average Overweight (x) . | . . Largest Inventory Capacity 8 | 8 8 Average Capacity 8 | 8 8 Most Carried 8 | 6 8 Average Carried 7 | 6 7 Final Capacity 8 | 8 8 Final Carried 6 | 6 4 Class Distribution -------------------- 100% | Mutant Dominant Class ---------------- Mutant | -10/Materials Resources | -11 -10 ----------- Run | Yrd Mat Matter Collected 370 | 200 170 Remotely 29 | . 29 Salvage Created 170 | . 170 Parts 11 | . 11 Haulers Intercepted . | . . Recyclers Shooed . | . . Parts Field Recycled . | . . Retrieved Matter . | . . Parts Self-Destructed . | . . Prevented . | . . Parts Restored . | . . Kills | -11 -10 ------- Run | Yrd Mat Combat Hostiles Destroyed 6 | . 6 Melee 3 | . 3 Guns 2 | . 2 Classes Destroyed 3 | . 3 Tunneler 1 | . 1 Swarmer 2 | . 2 Grunt 4 | . 4 Best Kill Streak 2 | . 2 Combat Bots Only 2 | . 2 Max Kills in Single Turn 1 | . 1 Gunslinging . | . . Exploded . | . . Melee 1 | . 1 Uniques/NPCs Destroyed . | . . Combat | -11 -10 -------- Run | Yrd Mat Hostile Shots Fired 127 | . 127 Missed 29 | . 29 Hits 98 | . 98 Projectile 98 | . 98 Damage Taken 875 | . 875 Core 254 | . 254 Absorbed by Shields . | . . Core Remaining (%) 100 | 100 . Volleys Fired 6 | . 6 Largest 2 | . 2 Hottest 40 | . 40 Shots Fired 12 | . 12 Gun 12 | . 12 Cannon . | . . Launcher . | . . Special . | . . Kinetic 12 | . 12 Thermal . | . . Explosive . | . . Electromagnetic . | . . Robot Hit Streak 3 | . 3 Robot Miss Streak 2 | . 2 Penetration Max . | . . Secondary Targets . | . . Shots Hit Robots 29 | . 29 Core Hits 7 | . 7 Critical Kills . | . . Critical Parts Destroyed 4 | . 4 Critical Strikes 4 | . 4 Smash 4 | . 4 Melee Attacks 28 | . 28 Impact 27 | . 27 Slashing 1 | . 1 Piercing . | . . Sneak Attacks 1 | . 1 Combat Hostiles . | . . Follow-up Attacks . | . . Damage Inflicted 720 | . 720 Guns 88 | . 88 Cannons . | . . Explosions . | . . Melee 632 | . 632 Ramming . | . . Kinetic 88 | . 88 Thermal . | . . Explosive . | . . Electromagnetic . | . . Impact 632 | . 632 Slashing . | . . Piercing . | . . Highest Corruption . | . . Average Corruption . | . . Corruption Purged . | . . Corruption Blocked . | . . Overload Shots . | . . Overflow Damage 157 | . 157 Projectiles . | . . Explosions . | . . Melee 157 | . 157 Knockbacks 1 | . 1 Impact 1 | . 1 Kinetic . | . . Secondary . | . . Self-Inflicted Damage . | . . Shots . | . . Rammed . | . . Targets Rammed . | . . Kicked . | . . Crushed . | . . Highest Temperature . | . . Average Temperature . | . . Received Heat Transfer 186 | . 186 Siege Activations . | . . Martial Activations . | . . Shielding Activations . | . . Robots Disrupted . | . . Combat Hostiles . | . . Robots Corrupted 1 | . 1 Combat Hostiles 1 | . 1 Parts Fried 2 | . 2 Impact Corruptions 4 | . 4 Robots Melted . | . . Combat Hostiles . | . . Parts Melted . | . . Heat Transferred . | . . Parts Sabotaged . | . . Parts Stolen . | . . Parts Stripped . | . . Power Chain Reactions . | . . Alert | -11 -10 ------- Run | Yrd Mat Maximum Alert Level . | . . Low Security (%) 100 | 100 100 Level 1 . | . . Level 2 . | . . Level 3 . | . . Level 4 . | . . Level 5 . | . . High Security . | . . Max Security . | . . Peak Influence 50 | . 50 Initial . | . . Average 13 | . 13 Influence Increases 147 | . 147 Destroy 0b10 Robot/C 120 | . 120 Destroy 0b10 Robot/NC 5 | . 5 Destroy Leader 20 | . 20 Destroy Structure 2 | . 2 Influence Decreases 147 | . 147 Time Decay 86 | . 86 Lost Part 61 | . 61 Squads Dispatched 2 | . 2 Investigation . | . . Extermination . | . . Reinforcement 2 | . 2 Assault . | . . Garrison . | . . Intercept . | . . Searches Triggered . | . . Construction Impeded . | . . Haulers Reinforced . | . . Active Scanning Responses . | . . Cargo Convoy Interrupts . | . . Stealth | -11 -10 --------- Run | Yrd Mat Distress Signals . | . . Communications Jammed . | . . Distress Signals . | . . Times Spotted 18 | . 18 Peak Tracking Total 10 | . 10 Tactical Retreats . | . . Traps | -11 -10 ------- Run | Yrd Mat Traps Triggered . | . . Indirectly . | . . Trap Hack Attempts . | . . Triggered . | . . Disarmed . | . . Reprogrammed . | . . Reused . | . . Traps Extracted . | . . Installed . | . . Triggered . | . . Machines | -11 -10 ---------- Run | Yrd Mat Machines Disabled . | . . Max in Single Turn . | . . Machines Repaired . | . . Machines Dismantled . | . . Machines Sabotaged . | . . Overloaded Fab Kills . | . . Hacking | -11 -10 --------- Run | Yrd Mat Machines Accessed . | . . Terminals . | . . Fabricators . | . . Repair Stations . | . . Recycling Units . | . . Scanalyzers . | . . Garrison Access . | . . Total Hacks . | . . Successful . | . . Failed . | . . Catastrophic . | . . Database Lockouts . | . . Manual . | . . Terminals . | . . Fabricators . | . . Repair Stations . | . . Recycling Units . | . . Scanalyzers . | . . Garrison Access . | . . Terminal Hacks . | . . Fabricator Hacks . | . . Repair Station Hacks . | . . Recycling Unit Hacks . | . . Scanalyzer . | . . Garrison Access Hacks . | . . Unauthorized Hacks . | . . Terminals . | . . Fabricators . | . . Repair Stations . | . . Recycling Units . | . . Scanalyzers . | . . Garrison Access . | . . Data Cores Recovered . | . . Used . | . . Hacking Detections . | . . Full Trace Events . | . . Feedback Events . | . . Feedback Blocked . | . . Robot Schematics Acquired . | . . Robots Built . | . . Authchips . | . . Time . | . . Total Robot Build Rating . | . . Part Schematics Acquired . | . . Parts Built . | . . Authchips . | . . Time . | . . Total Part Build Rating . | . . Part Studies Acquired . | . . Parts Repaired . | . . Time . | . . Parts Recycled . | . . Recycled Matter . | . . Retrieved Matter . | . . Retrieved Components . | . . Parts Scanalyzed . | . . Part Schematics Acquired . | . . Parts Damaged . | . . Bothacking | -11 -10 ------------ Run | Yrd Mat Used RIF Installer . | . . Robots Hacked . | . . Non-combat . | . . Combat . | . . Robot Hacks Applied . | . . Relay Couplers Released . | . . Fabnet Peak Effective % . | . . Robots Rewired . | . . Allies Hacked . | . . Hacks Repelled . | . . Allies | -11 -10 -------- Run | Yrd Mat Total Allies . | . . Largest Group . | . . Highest-Rated Group . | . . Highest-Rated Ally . | . . Total Orders . | . . Ally Attacks . | . . Total Damage . | . . Kills . | . . Allies Corrupted . | . . Allies Melted . | . . Intel | -11 -10 ------- Run | Yrd Mat Active Infowar (turns) 84 | . 84 Seismic 84 | . 84 Robot Analysis Total . | . . Derelict Logs Recovered . | . . Drone Launches . | . . Drone Recoveries . | . . Exploration | -11 -10 ------------- Run | Yrd Mat Turns Passed 310 | 1 309 Spaces Moved 146 | 1 145 Core . | . . Treads . | . . Legs 139 | 1 138 Wheels 7 | . 7 Hover . | . . Flight . | . . Fastest Speed 80 | 120 80 Average Speed 118 | 120 118 Slowest Speed 120 | 120 120 Overloaded Moves . | . . Propulsion Burnouts . | . . Robots Hopped . | . . Potential Cave-ins . | . . Cave-ins Triggered . | . . Exploration Rate (%) 17 | 2 32 Regions Visited 1 Branch Regions . Pre-discovered Areas . | . . Known Exits Taken . | . . Unknown Exits Taken 1 | 1 . Scrap Searched . | . . Spaces Dug 2 | . 2 Terrain Destroyed 2 | . 2 Melee 2 | . 2 Projectile . | . . AOE . | . . Terrain Rammed . | . . Walls Destroyed . | . . Machines Disabled . | . . Actions | -11 -10 --------- Run | Yrd Mat Total 221 | 1 220 Wait 22 | 1 21 Move 145 | . 145 Hop . | . . Pick Up 4 | . 4 Fast Attach 1 | . 1 Attach 3 | . 3 Detach . | . . Swap 8 | . 8 Drop 4 | . 4 Fire 6 | . 6 Melee 28 | . 28 Ram . | . . Kick . | . . Crush . | . . Escape Stasis . | . . Rewire . | . . Trap . | . . Miscellaneous . | . . Route ------- -11/Scrapyard -10/Materials History --------- Turn | Location | Event 2 | -11/Scrapyard | Discovered new exit (range 0) 2 | -11/Scrapyard | Entered Materials 289 | -10/Materials | Core integrity fell below 50% 304 | -10/Materials | Core integrity fell below 20% 311 | -10/Materials | Destroyed by S-10 Pest with Light Assault Rifle Last Messages --------------- 00237_ K-01 Serf cleans the Nuclear Reactor. 00238_ R-06 Scavenger collects Wheel. 00241_ K-01 Serf cleans the Nuclear Reactor. 00242_ R-06 Scavenger collects Lgt. Treads. 00244_ K-01 Serf cleans the Nuclear Reactor. 00246_ R-06 Scavenger collects Lgt. Treads. 00249_ K-01 Serf cleans the Nuclear Reactor. 00282_ S-10 Pest destroyed. 00283_ Acquired 16 matter. 00285_ Lgt. Ion Engine destroyed. 00290_ S-10 Pest destroyed. 00291_ Acquired 13 matter. 00291_ R-06 Scavenger collects Flight Unit. 00291_ R-06 Scavenger collects Lgt. Ion Engine. 00295_ R-06 Scavenger collects Flight Unit. 00298_ Tractor Beam destroyed. 00299_ Aluminum Leg destroyed. 00300_ Assault Rifle destroyed. 00304_ Lgt. Ion Engine destroyed. 00304_ K-01 Serf collects debris. Map ----- +----------------------------------------------------+ | ?????????????????????????????????????????????????? | | ?????????????????????????????????????????????????? | | ?????????????????????????????????????????????????? | | ?????????????????????????????????????????????????? | | ?????????????????????????????????????????????????? | | ?????????????????????????????????????????????????? | | ?????????????????????????????????????????????????? | | ?????????????????????????????????????????????????? | | ?????????????????????????????????????????????????? | | ?????????????????????????????????????????????????? | | ?????????????????????????????????????????????????? | | ?????????????????????????????????????????????????? | | ?????????????????????????????????????????????????? | | ????????????????????#????????????????????????????? | | ?????????#+?????????# ???????????????????????????? | | ????? ### ###??????# ???????????????????????????? | | ????? ??????# ???????????????????????????? | | ???? ??####/######?????????????????????? | | ????? !! ??# r #############?????????? | | ?????? !! ??# r # T #?????????? | | ?????? ! ### # """ #?????????? | | ??????? # # """ #?????????? | | ???????? s # """ #?????????? | | ???????? """ # # #?????????? | | ???????? """ # #####/########????????? | | ? """ # ssss @ #?# # #????????? | | ? ##s########## # #????????? | | ? + #????????? | | ? # #????????? | | ?? !]] # #????????? | | ?? !]! ### #????????? | | ??? !] #?# #????????? | | ??? #?# #????????? | | ??? ############### #?######????????? | | ????#+#########+##?????????#####+#####???????????? | | ?????????????? ???????????# #???????????? | | ?????????????? "???????????# #???????????? | | ?????????????" "???????????# #???????????? | | ?????????????" "???????????# #???????????? | | ????????????? ????????????# #???????????? | | ???#########?#???#########?# #???????????? | | # ####!! #?# #???????????? | | + =/ [ #?# #???????????? | | # ####*[""" ########/####???????????? | | ??# ####### ?????#=""""" # #????????????? | | ?????????????????# """"" # #????????????? | | ?????????????????# """"" / T #????????????? | | ?????????????????# """ # #????????????? | | ?????????????????# # / #????????????? | | ?????????????????# # = #????????????? | +----------------------------------------------------+ Best States ------------- Heat Dissipation 25 Energy Generation 10 Energy Capacity 125 Matter Stores 376 Matter Capacity 500 Sight Range 16 Terrain Scan Density 10 Evasion (%) 55 Item Schematics ----------------- None Robot Schematics ------------------ None Fabricated ------------ Nothing Repaired ---------- Nothing Studied --------- None Alien Tech Used ----------------- None Achievements -------------- Ghost 'Em Challenges ------------ None Game ------ Seed CoreStormCore Manual? 0 Play Time 00:08:16 Cumulative 17.4 hours Start 2025.10.28 @ 13:22:10 End 2025.10.28 @ 13:28:19 Sessions 1 Manual Loads 0 Difficulty Rogue Special Mode None Game No. 30 Rogue 30 Adventurer 0 Explorer 0 Win Type - Total 0 Types 0/0/0/0/0/0/0/0/0/0 Lore% 14 Gallery% 25 Achievement% 16 Wizard Run 0 Options --------- Layout 0 ASCII 0 Keyboard 1 Movement Numpad Keybinds 0 Fullscreen 1 Font 24/Smallcaps Map View 76x50 Zoom Use 0% Tactical HUD 1 Map Filters NONE Filters NONE Steam 1 RUN: 3f7c9991-448e-4093-988a-019a12dfceef